{"text_format":"1","workbook":"xlsx","n_sheets":4,"sheets":["Sheet1","Sheet3","Sheet2","Table1"],"not_rendered":{"charts":0,"images":0,"macros":1,"external_links":0,"defined_names":1,"comments":0,"pivot_tables":0},"unopened":[],"bounds":{"document_bytes":16777216,"sheet_cells":100000,"rows_first":2000,"rows_last":500,"rows_between":2000,"halvings":0,"cell_chars":16384,"cell_head_chars":4096},"cells_cut":0,"cells_raw":0,"read":"whole","date_system":"1900"}

{"sheet":"Sheet1","index":0,"n_rows":6,"n_cols":2,"rows_kept":6,"cut":false,"hidden":false,"merged":[]}
["Microsoft Excel"]
["excel is widely used for data analysis and spreadsheet management.",{"$f":"UPPER(LEFT(A2,1))&RIGHT(A2,LEN(A2)-1)","v":"Excel is widely used for data analysis and spreadsheet management."}]
["you can create complex formulas to automate calculations in excel.",{"$f":"UPPER(LEFT(A3,1))&RIGHT(A3,LEN(A3)-1)","v":"You can create complex formulas to automate calculations in excel."}]
["visualizing data with charts and graphs is straightforward in excel.","Visualizing data with charts and graphs is straightforward in excel."]
["excel allows for data manipulation through pivot tables and filters.","Excel allows for data manipulation through pivot tables and filters."]
["collaboration in excel is enhanced with real-time co-authoring features.","Collaboration in excel is enhanced with real-time co-authoring features."]

{"sheet":"Sheet3","index":1,"n_rows":7,"n_cols":4,"rows_kept":7,"cut":false,"hidden":false,"merged":[]}
["Microsoft Excel","UPPER","LOWER","PROPER"]
["Basic and Advanced Formatting",{"$f":"UPPER(A2)","v":"BASIC AND ADVANCED FORMATTING"},{"$f":"LOWER(A2)","v":"basic and advanced formatting"},{"$f":"PROPER(A2)","v":"Basic And Advanced Formatting"}]
["Formulas and Functions",{"$f":"UPPER(A3)","v":"FORMULAS AND FUNCTIONS"},{"$f":"LOWER(A3)","v":"formulas and functions"},{"$f":"PROPER(A3)","v":"Formulas And Functions"}]
["Data Analysis Tools","DATA ANALYSIS TOOLS","data analysis tools","Data Analysis Tools"]
["Charts and Graphics","CHARTS AND GRAPHICS","charts and graphics","Charts And Graphics"]
["Data Management","DATA MANAGEMENT","data management","Data Management"]
["Macros and VBA Programming","MACROS AND VBA PROGRAMMING","macros and vba programming","Macros And Vba Programming"]

{"sheet":"Sheet2","index":2,"n_rows":6,"n_cols":1,"rows_kept":6,"cut":false,"hidden":false,"merged":[]}
["Microsoft Excel"]
["Excel is widely used for data analysis and spreadsheet management."]
["You can create complex formulas to automate calculations in excel."]
["Visualizing data with charts and graphs is straightforward in excel."]
["Excel allows for data manipulation through pivot tables and filters."]
["Collaboration in excel is enhanced with real-time co-authoring features."]

{"sheet":"Table1","index":3,"n_rows":6,"n_cols":2,"rows_kept":6,"cut":false,"hidden":false,"merged":[]}
["Microsoft Excel","Capitalize Each Word"]
["excel is widely used for data analysis and spreadsheet management.","Excel Is Widely Used For Data Analysis And Spreadsheet Management."]
["you can create complex formulas to automate calculations in excel.","You Can Create Complex Formulas To Automate Calculations In Excel."]
["visualizing data with charts and graphs is straightforward in excel.","Visualizing Data With Charts And Graphs Is Straightforward In Excel."]
["excel allows for data manipulation through pivot tables and filters.","Excel Allows For Data Manipulation Through Pivot Tables And Filters."]
["collaboration in excel is enhanced with real-time co-authoring features.","Collaboration In Excel Is Enhanced With Real-Time Co-Authoring Features."]